bitfinex/quotes_SOLUSD_20241115
["timestamp","ask_amount","ask_price","bid_price","bid_amount"]
[1731642555924,23.776884,210.43,210.37,14.90081126]
[1731642556421,14.90081126,210.49,210.42,14.90081126]
[1731642556630,14.90081126,210.47,210.4,14.90081126]
[1731642556829,14.90081126,210.45,210.38,14.90081126]
[1731642556999,23.776884,210.43,210.37,14.90081126]
[1731642557321,38.67769526,210.43,210.36,14.90081126]
[1731642557625,23.776884,210.41,210.35,14.90081126]
[1731642558523,38.67769526,210.41,210.34,31.45621126]
[1731642560028,23.776884,210.41,210.35,14.90081126]
[1731642560325,23.776884,210.42,210.37,14.90081126]
[1731642560508,23.776884,210.46,210.39,14.90081126]
[1731642560819,38.67769526,210.44,210.37,14.90081126]
[1731642561215,23.776884,210.44,210.37,14.90081126]
[1731642561423,23.776884,210.44,210.38,14.90081126]
[1731642561931,23.776884,210.45,210.4,14.90081126]
[1731642562229,23.776884,210.47,210.41,14.90081126]
[1731642562414,14.90081126,210.48,210.41,14.90081126]
[1731642563999,23.776884,210.47,210.41,14.90081126]
[1731642564205,23.776884,210.47,210.4,14.90081126]
[1731642564412,14.90081126,210.47,210.4,14.90081126]
[1731642564726,23.776884,210.46,210.4,14.90081126]
[1731642565108,14.90081126,210.45,210.38,14.90081126]
[1731642565506,38.67769526,210.46,210.39,14.90081126]
[1731642568622,43.42929526,210.46,210.39,14.90081126]
[1731642570223,43.42929526,210.46,210.38,14.90081126]
[1731642570437,23.776884,210.44,210.38,14.90081126]
[1731642571027,14.90081126,210.43,210.36,14.90081126]
[1731642573316,23.776884,210.44,210.37,14.90081126]
[1731642573722,23.776884,210.45,210.39,14.90081126]
[1731642573917,23.776884,210.46,210.4,14.90081126]
[1731642574513,14.90081126,210.49,210.42,14.90081126]
[1731642574734,7.4462975,210.51,210.43,14.90081126]
[1731642574735,19.65141126,210.5,210.43,14.90081126]
[1731642575030,14.90081126,210.49,210.42,14.90081126]
[1731642575412,14.90081126,210.49,210.35,20.12549]
[1731642575413,14.90081126,210.48,210.41,14.90081126]
[1731642575832,23.776884,210.47,210.42,14.90081126]
[1731642576033,23.776884,210.5,210.44,14.90081126]
[1731642576240,23.776884,210.5,210.45,14.90081126]
[1731642576537,23.776884,210.5,210.44,14.90081126]
[1731642576725,14.90081126,210.5,210.43,14.90081126]
[1731642577118,19.65161126,210.49,210.42,14.90081126]
[1731642577834,23.776884,210.48,210.43,14.90081126]
[1731642579140,19.65201126,210.47,210.4,14.90081126]
[1731642582556,27.09830876,210.47,210.4,14.90081126]
[1731642582856,19.65201126,210.47,210.4,14.90081126]
[1731642584660,31.2231815,210.48,210.44,14.90081126]
[1731642584866,7.4462975,210.48,210.45,14.90081126]
[1731642585049,7.4462975,210.48,210.43,14.90081126]
[1731642585550,7.4462975,210.48,210.42,14.90081126]
[1731642588863,7.4462975,210.48,210.42,9.53663333]
[1731642589438,16.98293083,210.48,210.41,9.53663333]
[1731642590855,33.31351733,210.47,210.4,9.53663333]
[1731642591036,33.31351733,210.47,210.39,9.53663333]
[1731642591237,23.776884,210.47,210.41,9.53663333]
[1731642593165,9.53663333,210.46,210.35,7.43408973]
[1731642593335,23.776884,210.45,210.39,9.53663333]
[1731642593953,9.53663333,210.44,210.35,7.43408973]
[1731642594158,9.53663333,210.44,210.37,9.53663333]
[1731642595250,14.28873333,210.44,210.37,9.53663333]
[1731642595858,4.7521,210.44,210.38,9.53663333]
[1731642596448,14.28873333,210.44,210.38,9.53663333]
[1731642597856,31.2231815,210.45,210.38,9.53663333]
[1731642598045,35.9748815,210.45,210.39,9.53663333]
[1731642599253,45.51151483,210.45,210.39,9.53663333]
[1731642600964,31.2231815,210.45,210.41,9.53663333]
[1731642601265,31.2231815,210.45,210.4,9.53663333]
[1731642601449,23.776884,210.45,210.4,9.53663333]
[1731642603577,38.06521733,210.45,210.38,9.53663333]
[1731642603864,45.51151483,210.45,210.38,9.53663333]
[1731642604442,38.06521733,210.45,210.38,9.53663333]
[1731642604642,9.53663333,210.44,210.38,9.53663333]
[1731642605873,7.4462975,210.45,210.4,9.53663333]
[1731642606163,7.4462975,210.46,210.4,9.53663333]
[1731642606366,7.4462975,210.46,210.41,9.53663333]
[1731642607167,7.4462975,210.46,210.4,9.53663333]
[1731642608145,23.776884,210.45,210.39,9.53663333]
[1731642608864,28.528584,210.45,210.39,9.53663333]
[1731642609054,9.53663333,210.42,210.36,7.43091997]
[1731642609256,9.53663333,210.39,210.32,9.53663333]
[1731642609463,9.53663333,210.41,210.3,7.42915473]
[1731642609666,9.53663333,210.41,210.34,9.53663333]
[1731642609872,9.53663333,210.4,210.34,9.53663333]
[1731642611070,23.776884,210.41,210.34,9.53663333]
[1731642611251,33.31351733,210.41,210.34,9.53663333]
[1731642612181,7.4462975,210.43,210.38,9.53663333]
[1731642612344,21.863,210.44,210.4,9.53663333]
[1731642612748,21.863,210.44,210.41,9.53663333]
[1731642612966,15.492,210.44,210.41,9.53663333]
[1731642613467,4.7518,210.45,210.41,9.53663333]
[1731642614255,4.7518,210.45,210.4,9.53663333]
[1731642614943,7.4462975,210.46,210.33,0.12549]
[1731642614944,7.4462975,210.46,210.43,9.53663333]
[1731642615151,7.4462975,210.47,210.43,9.53663333]
[1731642615359,7.4462975,210.47,210.33,0.22549]
[1731642615670,7.4462975,210.46,210.41,9.53663333]
[1731642615868,12.1975975,210.47,210.41,9.53663333]
[1731642616567,7.4462975,210.47,210.42,9.53663333]
[1731642620879,7.4462975,210.47,210.43,9.53663333]
[1731642621053,7.4462975,210.47,210.35,20.12549]
[1731642621252,7.4462975,210.47,210.41,9.53663333]
[1731642622364,7.4462975,210.47,210.43,9.53663333]
[1731642622563,7.4462975,210.47,210.42,9.53663333]
[1731642624379,7.4462975,210.47,210.46,9.53663333]
[1731642624754,44.67778501,210.51,210.46,9.53663333]
[1731642625074,108.63757252,210.54,210.44,0.12549]
[1731642625075,85.13740239,210.54,210.44,0.12549]
[1731642625277,83.99960835,210.54,210.47,9.53663333]
[1731642625471,79.21267502,210.54,210.43,6.1894]
[1731642625675,14.28633333,210.54,210.47,9.53663333]
[1731642625859,9.53663333,210.53,210.46,9.53663333]
[1731642626054,9.53663333,210.52,210.5,59.44128963]
[1731642626256,33.31351733,210.51,210.5,59.44128963]
[1731642626873,23.776884,210.51,210.48,74.30161203]
[1731642627671,23.776884,210.51,210.46,98.51082391]
[1731642627672,33.31351733,210.5,210.46,88.97419058]
[1731642627879,9.53663333,210.49,210.46,88.97419058]
[1731642628367,9.53663333,210.48,210.46,192.78693911]
[1731642628671,28.527484,210.5,210.47,88.97419058]
[1731642628856,28.527484,210.5,210.49,74.22226867]
[1731642629260,38.06411733,210.5,210.49,74.22226867]
[1731642629954,58.18960733,210.5,210.47,88.97419058]
[1731642630153,53.43900733,210.48,210.47,88.97419058]
[1731642630350,53.43900733,210.48,210.46,103.81274853]
[1731642630351,20.0,210.47,210.46,103.81274853]
[1731642630556,53.31351733,210.47,210.46,103.81274853]
[1731642630761,0.12549,210.45,210.44,74.22226867]
[1731642630965,75.51460733,210.45,210.44,74.22226867]
[1731642631374,43.902374,210.44,210.43,118.64530073]
[1731642631557,53.43900733,210.44,210.43,118.64530073]
[1731642631978,58.19090733,210.44,210.43,118.64530073]
[1731642632782,63.56726691,210.44,210.43,118.64530073]
[1731642633163,43.776884,210.41,210.36,148.30474428]
[1731642633774,43.776884,210.41,210.36,163.21773719]
[1731642633971,4.7523,210.42,210.36,148.30474428]
[1731642634174,24.7523,210.42,210.36,163.21773719]
[1731642634862,4.7523,210.42,210.36,163.21773719]
[1731642635062,19.66529291,210.42,210.36,148.30474428]
[1731642635478,23.776884,210.41,210.36,148.30474428]
[1731642636075,23.776884,210.39,210.36,148.30474428]
[1731642636280,38.68987691,210.39,210.36,148.30474428]
[1731642637178,23.776884,210.39,210.36,148.30474428]
[1731642638384,38.68987691,210.37,210.36,148.30474428]
[1731642638573,38.68987691,210.37,210.31,59.36760906]
[1731642638776,14.91299291,210.37,210.3,14.91299291]
[1731642638982,38.68987691,210.38,210.3,14.91299291]
[1731642639166,14.91299291,210.37,210.3,14.91299291]
[1731642639367,23.776884,210.36,210.3,14.91299291]
[1731642640277,43.44367691,210.36,210.29,222.58534625]
[1731642640476,43.44367691,210.36,210.29,163.21773719]
[1731642640870,38.68987691,210.33,210.29,148.30474428]
[1731642641071,14.91299291,210.32,210.29,148.30474428]
[1731642642487,23.776884,210.32,210.29,148.30474428]
[1731642643287,23.776884,210.32,210.26,31.38939291]
[1731642643891,23.776884,210.32,210.25,14.91299291]
[1731642643892,38.68987691,210.32,210.25,14.91299291]
[1731642644192,23.776884,210.32,210.26,14.91299291]
[1731642644698,23.776884,210.33,210.27,14.91299291]
[1731642645790,23.776884,210.33,210.26,14.91299291]
[1731642646300,38.68987691,210.33,210.26,14.91299291]
[1731642648193,43.44427691,210.33,210.26,14.91299291]
[1731642648499,14.91299291,210.32,210.25,14.91299291]
[1731642649373,14.91299291,210.3,210.23,14.91299291]
[1731642649693,14.91299291,210.29,210.22,14.91299291]
[1731642650075,23.776884,210.28,210.22,14.91299291]
[1731642650697,38.68987691,210.28,210.21,23.55330399]
[1731642650992,4.7557,210.27,210.21,23.55330399]
[1731642651496,4.7557,210.27,210.21,8.64031108]
[1731642651882,38.68987691,210.28,210.21,8.64031108]
[1731642652089,43.44537691,210.28,210.21,23.55330399]
[1731642652402,38.68987691,210.28,210.21,23.55330399]
[1731642652695,20.0,210.31,210.25,14.91299291]
[1731642652899,20.0,210.31,210.24,14.91299291]
[1731642653303,39.66799291,210.31,210.24,14.91299291]
[1731642653999,23.776884,210.3,210.24,14.91299291]
[1731642654786,9.55237687,210.28,210.21,8.64031108]
[1731642655099,33.32926087,210.25,210.18,9.55237687]
[1731642655309,23.776884,210.25,210.19,9.55237687]
[1731642656002,28.533084,210.25,210.19,9.55237687]
[1731642656790,38.08546087,210.25,210.18,9.55237687]
[1731642657108,33.32926087,210.25,210.18,9.55237687]
[1731642657685,23.776884,210.25,210.19,9.55237687]
[1731642658009,38.08546087,210.25,210.18,9.55237687]
[1731642658514,28.533084,210.25,210.19,9.55237687]
[1731642660505,38.08546087,210.25,210.18,9.55237687]
[1731642660715,33.32926087,210.25,210.18,9.55237687]
[1731642660913,28.533084,210.25,210.14,74.85820906]
[1731642661082,23.776884,210.22,210.12,59.36760906]
[1731642661287,23.776884,210.22,210.16,9.55237687]
[1731642665007,33.32926087,210.19,210.12,9.55237687]
[1731642665209,33.32926087,210.19,210.13,9.55237687]
[1731642665705,9.55237687,210.18,210.11,9.55237687]
[1731642665905,14.31027687,210.18,210.11,9.55237687]
[1731642666086,23.776884,210.17,210.12,9.55237687]
[1731642666288,23.776884,210.17,210.13,9.55237687]
[1731642666488,20.0,210.24,210.14,9.55237687]
[1731642666800,23.776884,210.24,210.17,9.55237687]
[1731642667817,28.533384,210.24,210.17,9.55237687]
[1731642668016,33.32926087,210.22,210.15,9.55237687]
[1731642668313,23.776884,210.2,210.15,9.55237687]
[1731642668515,38.08576087,210.24,210.11,0.12549]
[1731642669419,38.08576087,210.24,210.17,9.55237687]
[1731642671198,9.55237687,210.23,210.16,9.55237687]
[1731642671599,23.776884,210.22,210.16,9.55237687]
[1731642673493,23.776884,210.23,210.17,9.55237687]
[1731642673711,4.7561,210.26,210.21,9.55237687]
[1731642673911,23.776884,210.25,210.21,9.55237687]
[1731642674097,22.4641,210.29,210.23,9.55237687]
[1731642674098,23.776884,210.28,210.23,9.55237687]
[1731642676219,23.776884,210.28,210.25,9.55237687]
[1731642676519,9.55237687,210.33,210.26,9.55237687]
[1731642676897,9.55237687,210.32,210.24,9.55237687]
[1731642677098,9.55237687,210.3,210.23,9.55237687]
[1731642677401,9.55237687,210.27,210.2,24.91497687]
[1731642677616,23.776884,210.26,210.2,24.91497687]
[1731642677805,23.776884,210.26,210.21,9.55237687]
[1731642678002,23.776884,210.29,210.25,9.55237687]
[1731642678200,4.7542,210.34,210.27,9.55237687]
[1731642678406,14.30657687,210.34,210.27,9.55237687]
[1731642678730,9.55237687,210.33,210.27,9.55237687]
[1731642679194,14.30697687,210.33,210.26,9.55237687]
[1731642679395,53.32926087,210.32,210.25,9.55237687]
[1731642679599,9.55237687,210.31,210.24,9.55237687]
[1731642679823,23.776884,210.3,210.24,9.55237687]
[1731642680207,23.776884,210.3,210.21,6.169]
[1731642680420,23.776884,210.31,210.25,9.55237687]
[1731642680605,20.0,210.32,210.27,9.55237687]
[1731642680814,14.30697687,210.33,210.27,9.55237687]
[1731642681527,9.55237687,210.33,210.22,0.12549]
[1731642681823,9.55237687,210.33,210.26,9.55237687]
[1731642682026,23.776884,210.32,210.26,9.55237687]
[1731642683019,9.55237687,210.32,210.26,9.55237687]
[1731642683334,22.4641,210.35,210.23,9.55237687]
[1731642683335,9.55237687,210.3,210.23,9.55237687]
[1731642684010,23.776884,210.31,210.25,9.55237687]
[1731642684213,22.4641,210.35,210.27,9.55237687]
[1731642684214,23.776884,210.33,210.27,9.55237687]
[1731642684414,23.776884,210.34,210.28,9.55237687]
[1731642685019,28.531084,210.34,210.28,9.55237687]
[1731642685812,38.08346087,210.34,210.27,9.55237687]
[1731642686340,23.776884,210.32,210.26,9.55237687]
[1731642686630,9.55237687,210.3,210.22,0.12549]
[1731642686936,9.55237687,210.29,210.22,9.55237687]
[1731642687111,9.55237687,210.28,210.21,9.55237687]
[1731642687848,23.776884,210.32,210.22,9.55237687]
[1731642687849,9.55237687,210.29,210.22,9.55237687]
[1731642688218,9.55237687,210.3,210.23,9.55237687]
[1731642688931,23.776884,210.34,210.28,9.55237687]
[1731642689246,23.776884,210.34,210.29,9.55237687]
[1731642689406,4.7535,210.38,210.29,9.55237687]
[1731642689608,21.968,210.4,210.35,9.55237687]
[1731642689828,9.55237687,210.42,210.35,9.55237687]
[1731642690216,14.30477687,210.42,210.36,9.55237687]
[1731642690418,9.55237687,210.4,210.33,9.55237687]
[1731642690719,9.55237687,210.35,210.29,59.36760906]
[1731642690922,33.32926087,210.33,210.28,74.22226867]
[1731642691124,33.32926087,210.33,210.27,59.36760906]
[1731642691323,23.776884,210.33,210.28,9.55237687]
[1731642692340,6.5356,210.38,210.29,9.55237687]
[1731642692341,23.776884,210.35,210.29,9.55237687]
[1731642692731,9.55237687,210.36,210.25,75.96160906]
[1731642692732,33.32926087,210.31,210.25,59.36760906]
[1731642692932,9.55237687,210.31,210.25,59.36760906]
[1731642693139,23.776884,210.3,210.25,59.36760906]
[1731642693645,33.32926087,210.3,210.24,74.22226867]
[1731642693852,33.32926087,210.3,210.23,9.55237687]
[1731642695454,23.776884,210.31,210.25,9.55237687]
[1731642695631,33.32926087,210.31,210.2,59.36760906]
[1731642695832,23.776884,210.29,210.23,9.55237687]
[1731642696435,33.32926087,210.29,210.22,9.55237687]
[1731642696827,38.70393117,210.29,210.22,14.92704717]
[1731642697862,14.92704717,210.27,210.2,14.92704717]
[1731642698034,14.92704717,210.25,210.19,59.36760906]
[1731642698229,14.92704717,210.28,210.22,14.92704717]
[1731642698445,23.776884,210.27,210.23,14.92704717]
[1731642698751,23.776884,210.29,210.23,14.92704717]
[1731642699152,15.4742,210.31,210.25,14.92704717]
[1731642699353,23.776884,210.31,210.26,14.92704717]
[1731642700033,23.776884,210.31,210.25,14.92704717]
[1731642700653,38.70393117,210.31,210.24,14.92704717]
[1731642701750,14.92704717,210.3,210.23,14.92704717]
[1731642701946,23.776884,210.29,210.23,14.92704717]
[1731642702252,23.776884,210.29,210.24,14.92704717]
[1731642702554,23.776884,210.3,210.24,14.92704717]
[1731642703856,23.776884,210.31,210.24,14.92704717]
[1731642706952,14.92704717,210.3,210.23,14.92704717]
[1731642707157,14.92704717,210.29,210.21,74.29465623]
[1731642707551,14.92704717,210.29,210.22,14.92704717]
[1731642708263,38.70393117,210.31,210.23,14.92704717]
[1731642708438,43.776884,210.33,210.27,14.92704717]
[1731642708638,43.776884,210.33,210.22,16.6345]
[1731642708639,43.776884,210.33,210.28,14.92704717]
[1731642710755,23.776884,210.33,210.28,14.92704717]
[1731642710961,23.776884,210.34,210.28,14.92704717]
[1731642711345,14.92704717,210.37,210.29,14.92704717]
[1731642711659,16.0739,210.41,210.36,14.92704717]
[1731642712045,6.0132,210.44,210.38,14.92704717]
[1731642712445,25.69224717,210.44,210.37,14.92704717]
[1731642712845,6.0132,210.44,210.37,14.92704717]
[1731642713344,23.776884,210.43,210.37,14.92704717]
[1731642713651,6.0132,210.44,210.37,14.92704717]
[1731642713958,25.69224717,210.44,210.37,14.92704717]
[1731642714860,23.776884,210.43,210.37,14.92704717]
[1731642716964,23.776884,210.43,210.37,9.54010456]
[1731642718677,4.7513,210.47,210.41,9.54010456]
[1731642718965,4.7513,210.47,210.42,9.54010456]
[1731642719150,20.74930456,210.49,210.42,9.54010456]
[1731642719351,6.4583,210.49,210.43,9.54010456]
[1731642719958,23.776884,210.48,210.43,9.54010456]
[1731642720852,23.776884,210.48,210.42,9.54010456]
[1731642722154,23.776884,210.48,210.43,9.54010456]
[1731642722359,23.776884,210.48,210.41,9.54010456]
[1731642722360,33.31698856,210.48,210.41,9.54010456]
[1731642722555,33.31698856,210.46,210.39,9.54010456]
[1731642722859,23.776884,210.46,210.4,9.54010456]
[1731642723059,9.54010456,210.45,210.38,9.54010456]
[1731642723266,33.31698856,210.46,210.39,9.54010456]
[1731642723860,9.54010456,210.43,210.31,59.36760906]
[1731642724070,20.0,210.47,210.37,9.54010456]
[1731642724252,33.31698856,210.47,210.4,9.54010456]
[1731642724565,23.776884,210.47,210.41,9.54010456]
[1731642726149,33.31698856,210.47,210.41,9.54010456]
[1731642726356,9.54010456,210.46,210.4,9.54010456]
[1731642726570,23.776884,210.45,210.4,9.54010456]
[1731642727163,23.776884,210.45,210.39,9.54010456]
[1731642727365,23.776884,210.45,210.4,9.54010456]
[1731642728287,33.31698856,210.46,210.39,9.54010456]
[1731642728578,33.31698856,210.46,210.4,9.54010456]
[1731642729074,9.54010456,210.45,210.32,38.16041824]
[1731642729288,23.776884,210.42,210.37,9.54010456]
[1731642729885,38.06918856,210.43,210.37,9.54010456]
[1731642730058,9.54010456,210.4,210.3,15.6664]
[1731642730391,23.776884,210.38,210.32,9.54010456]
[1731642731467,23.776884,210.38,210.33,9.54010456]
[1731642731678,23.776884,210.38,210.32,9.54010456]
[1731642731882,9.54010456,210.37,210.3,9.54010456]
[1731642732184,6.3342,210.29,210.25,39.4958515]
[1731642732478,0.1,210.19,210.02,19.034822]
[1731642732683,59.45766701,210.09,209.99,127.13460882]
[1731642732988,22.93548618,210.08,210.04,9.54010456]
[1731642733158,22.93548618,210.07,210.04,9.54010456]
[1731642733365,13.10599211,210.07,210.03,9.54010456]
[1731642733587,14.85285133,210.0,209.99,88.97419058]
[1731642734088,14.85285133,210.0,209.99,98.51429514]
[1731642734889,14.85285133,210.0,209.99,119.00277626]
[1731642735183,14.85285133,210.0,209.99,142.65417026]
[1731642735366,14.85285133,210.0,209.99,127.70262242]
[1731642735568,14.85285133,210.0,209.99,103.92573842]
[1731642736760,14.85285133,210.0,209.99,127.70262242]
[1731642736982,86.11894701,210.0,209.99,28.37419058]
[1731642737282,23.876884,209.99,209.96,148.30474428]
[1731642737463,15.07703784,209.97,209.96,60.54075927]
[1731642737863,15.07703784,209.97,209.96,55.79175927]
[1731642738085,45.07703784,209.97,209.96,55.79175927]
[1731642738284,30.0,209.97,209.96,55.79175927]
[1731642738585,197.07227419,209.97,209.96,55.79175927]
[1731642738891,236.55814038,209.97,209.96,50.13516177]
[1731642739069,286.55814038,209.97,209.96,43.24180288]
[1731642739469,20.22549,209.96,209.92,0.482461]
[1731642739669,63.5807315,209.93,209.92,0.482461]
[1731642740069,214.64228463,209.97,209.92,0.482461]
[1731642740269,21.79036575,209.94,209.92,0.482461]
[1731642741298,21.79036575,209.93,209.92,0.482461]
[1731642742168,21.79036575,209.93,209.74,19.056177]
[1731642742169,0.1,209.89,209.74,19.056177]
[1731642742370,21.79036575,209.79,209.74,19.056177]
[1731642742568,21.79036575,209.77,209.74,19.056177]
[1731642742769,21.79036575,209.83,209.75,21.79036575]
[1731642742969,21.79036575,209.81,209.73,21.79036575]
[1731642743270,21.79036575,209.78,209.71,21.79036575]
[1731642743487,21.79036575,209.78,209.7,0.482461]
[1731642743688,0.1,209.76,209.56,14.28]
[1731642743892,0.1,209.74,209.67,21.79036575]
[1731642744269,0.1,209.71,209.65,21.79036575]
[1731642744498,21.79036575,209.72,209.66,0.12549]
[1731642744692,0.1,209.71,209.66,0.12549]
[1731642745568,21.79036575,209.7,209.63,21.79036575]
[1731642745899,21.79036575,209.7,209.42,23.98117926]
[1731642745900,0.1,209.56,209.49,22.27282675]
[1731642746068,21.89036575,209.56,209.49,22.27282675]
[1731642747166,21.79036575,209.58,209.52,23.776884]
[1731642747391,0.1,209.58,209.53,0.12549]
[1731642747573,21.79036575,209.6,209.53,0.12549]
[1731642747771,21.79036575,209.57,209.53,0.12549]
[1731642748095,0.1,209.57,209.53,0.12549]
[1731642748291,21.79036575,209.61,209.53,21.79036575]
[1731642748595,21.89036575,209.62,209.55,21.79036575]
[1731642748969,21.79036575,209.6,209.53,21.79036575]
[1731642749183,21.79036575,209.6,209.52,0.12549]
[1731642749595,21.79036575,209.62,209.54,0.12549]
[1731642749774,0.1,209.64,209.58,21.79036575]
[1731642750495,0.1,209.67,209.6,21.79036575]
[1731642750790,21.79036575,209.69,209.63,23.776884]
[1731642750991,0.1,209.7,209.63,23.776884]
[1731642751495,21.79036575,209.68,209.64,0.12549]
[1731642751793,21.79036575,209.75,209.71,0.1]
[1731642751990,21.79036575,209.74,209.71,0.1]
[1731642752199,21.79036575,209.72,209.69,0.1]
[1731642753272,20.0,209.69,209.56,0.1]
[1731642753471,21.79036575,209.6,209.54,0.1]
[1731642753678,21.79036575,209.64,209.61,0.1]
[1731642753872,21.79036575,209.64,209.59,0.1]
[1731642754084,0.2,209.62,209.42,23.8754]
[1731642754282,0.1,209.6,209.56,21.79036575]
[1731642754589,102.43696677,209.57,209.56,21.79036575]
[1731642754790,178.60000137,209.57,209.56,21.79036575]
[1731642754992,184.97950147,209.57,209.56,21.79036575]
[1731642755191,172.30965768,209.57,209.56,21.79036575]
[1731642755391,140.55042411,209.57,209.56,45.56724975]
[1731642755596,102.43696677,209.57,209.56,45.56724975]
[1731642755803,125.54636677,209.57,209.56,20.56724975]
[1731642756003,0.1,209.51,209.4,4.7755]
[1731642756299,114.11381174,209.5,209.43,21.79036575]
[1731642756492,22.11519191,209.49,209.43,21.79036575]
[1731642756800,88.53361552,209.48,209.43,21.79036575]
[1731642757102,34.43760372,209.47,209.42,0.12549]
[1731642757395,34.33637723,209.47,209.42,20.12549]
[1731642757594,21.79036575,209.55,209.42,20.12549]
[1731642757802,21.79036575,209.55,209.49,20.0]
[1731642757980,0.1,209.55,209.49,10.69212351]
[1731642758186,0.1,209.54,209.5,0.12549]
[1731642759300,21.79036575,209.53,209.44,21.79036575]
[1731642759488,0.1,209.51,209.44,21.79036575]
[1731642759684,21.79036575,209.53,209.46,0.12549]
[1731642760413,21.79036575,209.53,209.46,21.91585575]
[1731642760886,0.2,209.54,209.48,0.12549]
[1731642761094,5.28999391,209.55,209.48,0.12549]
[1731642762103,21.79036575,209.57,209.51,20.0]
[1731642763408,21.79036575,209.57,209.5,20.12549]
[1731642763584,21.79036575,209.57,209.51,4.773]
[1731642765089,21.79036575,209.57,209.5,20.12549]
[1731642765090,21.79036575,209.57,209.53,24.7725]
[1731642765412,21.79036575,209.59,209.53,24.7725]
[1731642766085,21.79036575,209.57,209.53,24.7725]
[1731642767283,21.79036575,209.57,209.54,0.12549]
[1731642767489,148.99271633,209.6,209.55,4.7721]
[1731642769410,148.99271633,209.6,209.57,4.7716]
[1731642769600,148.99271633,209.6,209.54,4.7721]
[1731642769785,21.79036575,209.61,209.54,4.7721]
[1731642770405,21.79036575,209.61,209.55,0.12549]
[1731642771604,21.79036575,209.63,209.55,16.82769]
[1731642772105,21.79036575,209.61,209.55,16.82769]
[1731642773314,21.79036575,209.6,209.55,11.9303]
[1731642773615,21.79036575,209.61,209.55,16.7024]
[1731642776491,21.79036575,209.63,209.54,0.12549]
[1731642777613,21.79036575,209.63,209.55,4.7721]
[1731642778112,21.79036575,209.63,209.55,26.56246575]
[1731642778409,21.79036575,209.65,209.57,21.79036575]
[1731642778710,21.79036575,209.66,209.58,21.79036575]
[1731642779211,21.79036575,209.65,209.57,21.79036575]
[1731642779399,21.79036575,209.66,209.58,21.79036575]
[1731642779598,21.79036575,209.69,209.61,21.79036575]
[1731642780616,21.79036575,209.68,209.61,21.79036575]
[1731642780810,21.79036575,209.68,209.61,4.7706]
[1731642780999,21.79036575,209.65,209.57,33.71946575]
[1731642781208,21.79036575,209.64,209.57,33.71946575]
[1731642781505,21.79036575,209.64,209.58,0.12549]
[1731642781893,21.79036575,209.67,209.6,21.91585575]
[1731642782104,21.79036575,209.69,209.62,21.79036575]
[1731642782713,23.776884,209.7,209.57,16.7006]
[1731642782714,21.79036575,209.7,209.63,21.79036575]
[1731642783091,21.79036575,209.7,209.63,26.56056575]
[1731642783520,21.79036575,209.7,209.63,4.7702]
[1731642783701,21.79036575,209.69,209.63,24.7702]
[1731642784212,23.776884,209.72,209.65,21.79036575]
[1731642784413,45.56724975,209.72,209.63,36.6959]
[1731642784616,21.79036575,209.71,209.64,21.79036575]
[1731642785220,161.6,209.73,209.65,21.91585575]
[1731642785523,161.6,209.77,209.71,21.79036575]
[1731642785731,21.79036575,209.75,209.68,21.79036575]
[1731642786602,21.79036575,209.75,209.69,21.79036575]
[1731642786801,161.6,209.76,209.7,21.79036575]
[1731642788312,161.6,209.76,209.69,21.79036575]
[1731642788313,183.39036575,209.76,209.69,21.79036575]
[1731642788612,161.6,209.76,209.7,21.79036575]
[1731642788816,161.6,209.76,209.71,21.79036575]
[1731642789294,161.6,209.76,209.7,21.79036575]
[1731642789497,161.6,209.76,209.71,21.79036575]
[1731642789728,161.6,209.75,209.74,21.79036575]
[1731642790030,161.6,209.74,209.72,0.12549]
[1731642790325,144.9334,209.73,209.72,48.670574]
[1731642790616,74.63019518,209.88,209.74,0.12549]
[1731642790804,74.63019518,209.87,209.74,0.12549]
[1731642791007,74.63019518,209.86,209.8,21.79036575]
[1731642791299,52.83982943,209.79,209.73,20.0]
[1731642791506,52.83982943,209.78,209.74,23.902374]
[1731642791705,52.83982943,209.78,209.75,20.0]
[1731642792123,52.83982943,209.77,209.73,20.0]
[1731642792322,52.83982943,209.76,209.73,20.0]
[1731642792502,52.83982943,209.75,209.74,36.6873]
[1731642792824,52.83982943,209.75,209.74,36.81279]
[1731642793000,6.4214,209.89,209.74,36.81279]
[1731642793001,23.776884,209.88,209.75,20.0]
[1731642793320,161.6,209.87,209.81,21.79036575]
[1731642794321,183.39036575,209.87,209.8,21.79036575]
[1731642794507,183.39036575,209.87,209.8,26.55656575]
[1731642795022,161.6,209.87,209.81,21.79036575]
[1731642795625,123.12733425,209.79,209.76,0.12549]
[1731642795923,123.12733425,209.78,209.76,0.12549]
[1731642796429,123.12733425,209.77,209.76,0.12549]